bitfinex/quotes_ETHUSD_20250731
["timestamp","ask_amount","ask_price","bid_price","bid_amount"]
[1753991387475,4.369,3742.2,3742.1,2.6722963]
[1753991387653,4.369,3742.2,3741.7,3.11766438]
[1753991387874,4.369,3742.2,3741.4,0.0268]
[1753991387875,4.369,3742.2,3741.5,2.67271864]
[1753991388079,0.1336,3741.7,3741.4,0.0268]
[1753991388240,5.28069851,3741.6,3741.4,0.0268]
[1753991388441,1.11246985,3741.5,3741.4,2.69959627]
[1753991388637,4.5036,3741.5,3741.4,2.63426998]
[1753991388900,4.5036,3741.5,3740.7,0.4451]
[1753991389051,5.2494,3741.5,3740.9,2.67310131]
[1753991389384,5.2494,3741.5,3740.9,2.67315351]
[1753991389385,0.1336,3741.0,3740.9,2.67315351]
[1753991389578,4.9524,3741.0,3740.9,2.67315351]
[1753991390272,4.74629858,3741.0,3740.9,2.67315351]
[1753991390857,4.74629858,3741.0,3740.9,3.11825351]
[1753991391052,0.37829858,3741.0,3740.9,4.24740851]
[1753991391269,0.37829858,3741.0,3740.9,4.59880851]
[1753991391578,0.37829858,3741.0,3740.9,4.01965351]
[1753991391780,0.4508,3741.9,3741.2,0.55]
[1753991391781,4.364,3741.9,3741.2,0.55]
[1753991392088,0.4508,3742.3,3742.0,2.67236771]
[1753991392089,4.362,3742.3,3742.0,2.67236771]
[1753991392254,4.362,3742.3,3741.3,0.4451]
[1753991392255,0.4508,3742.2,3741.3,0.4451]
[1753991392453,0.1336,3741.7,3741.6,3.22265341]
[1753991394096,0.1336,3741.7,3741.6,0.55]
[1753991394503,0.1336,3741.7,3741.6,3.22265341]
[1753991394867,0.1336,3741.7,3741.6,3.66775341]
[1753991395183,0.1336,3741.7,3741.6,3.22265341]
[1753991395549,0.1336,3741.7,3741.6,3.11775341]
[1753991395757,0.02,3742.9,3741.6,4.95227902]
[1753991395974,0.02,3742.9,3742.8,2.67179651]
[1753991396384,0.02,3742.9,3742.8,3.34604089]
[1753991396651,0.71586275,3742.9,3741.7,0.4451]
[1753991396852,0.24506275,3742.8,3742.7,2.6718679]
[1753991397262,0.69586275,3742.8,3742.1,0.9951]
[1753991397556,0.24506217,3742.7,3742.6,2.67193929]
[1753991398860,0.24506217,3742.7,3742.6,3.22193929]
[1753991399063,0.02,3742.9,3742.8,3.22179651]
[1753991399292,0.26509369,3742.9,3742.8,3.22179651]
[1753991399661,0.26509369,3742.9,3742.8,3.66689651]
[1753991399863,0.26509369,3742.9,3742.8,4.73717295]
[1753991400061,0.2650881,3742.9,3742.8,4.73717295]
[1753991400392,0.2650881,3742.9,3742.8,16.13827418]
[1753991400393,1e-08,3742.9,3742.8,16.13827418]
[1753991400687,0.8794,3745.5,3744.8,2.67036957]
[1753991400986,0.4508,3745.5,3744.4,0.55]
[1753991401195,0.4508,3745.5,3744.8,2.67036957]
[1753991401550,0.4508,3745.5,3744.8,3.22036957]
[1753991401893,0.001,3746.0,3745.8,2.66965668]
[1753991402563,0.001,3746.0,3745.6,2.66974962]
[1753991402564,0.8994,3745.9,3744.4,3.0]
[1753991402807,0.8994,3745.9,3744.2,10.46647767]
[1753991402808,0.4508,3745.8,3745.1,2.67009689]
[1753991402958,0.4508,3745.8,3743.6,0.4451]
[1753991402959,0.8794,3745.8,3743.6,0.4451]
[1753991403173,0.02,3745.9,3745.6,2.66979923]
[1753991403378,0.02,3745.9,3745.8,2.66965668]
[1753991403693,0.26530687,3745.9,3745.8,2.23518672]
[1753991404076,0.4708,3746.9,3746.8,2.66894416]
[1753991404263,1e-08,3746.9,3746.8,7.50204416]
[1753991404459,1e-08,3746.9,3746.8,9.06915231]
[1753991404661,1e-08,3746.9,3746.8,8.51915231]
[1753991404889,1e-08,3746.9,3746.8,7.68115231]
[1753991405288,1e-08,3746.9,3746.8,10.50504416]
[1753991405588,1e-08,3746.9,3745.7,7.50789995]
[1753991405790,0.4508,3746.9,3746.6,2.66906735]
[1753991406088,0.001,3747.3,3747.0,2.66874248]
[1753991406305,0.001,3747.3,3745.8,5.66964584]
[1753991406306,0.8794,3747.2,3745.8,5.66964584]
[1753991406450,0.4286,3747.2,3745.8,4.41726458]
[1753991406652,0.4508,3747.1,3746.7,2.66895665]
[1753991406853,0.4508,3747.0,3746.3,2.66923525]
[1753991407086,0.4508,3747.0,3745.8,1.41726458]
[1753991407293,0.4508,3747.0,3746.2,2.66931129]
[1753991407490,0.4508,3747.0,3745.9,4.396]
[1753991407670,0.4508,3747.0,3746.6,2.66907988]
[1753991407853,0.001,3747.3,3746.0,7.50789995]
[1753991408050,0.4508,3746.9,3745.4,8.52768469]
[1753991408292,0.4508,3746.9,3745.5,8.23573943]
[1753991408493,0.001,3747.3,3746.8,2.66888596]
[1753991408656,0.001,3747.3,3746.8,2.66887604]
[1753991408991,3.0,3747.0,3745.8,4.393]
[1753991409288,1.53421305,3746.9,3745.7,7.06472556]
[1753991409519,0.8794,3746.8,3745.1,0.02]
[1753991409790,4.394,3747.1,3745.1,0.02]
[1753991409791,0.1336,3745.3,3745.1,0.02]
[1753991410212,0.4508,3745.2,3745.1,0.02]
[1753991410356,0.1336,3745.3,3745.1,0.02]
[1753991410552,3.54948437,3745.2,3745.1,0.02]
[1753991410791,1.21970269,3745.2,3745.1,0.02]
[1753991411099,0.5844,3745.2,3745.1,0.02]
[1753991411257,1.013,3745.2,3745.1,0.02]
[1753991412191,3.68308437,3745.2,3745.1,0.02]
[1753991412570,1.013,3745.2,3745.1,0.02]
[1753991412902,3.68308437,3745.2,3745.1,0.02]
[1753991413202,7.3183921,3745.2,3745.1,0.02]
[1753991413415,4.64830773,3745.2,3745.1,0.02]
[1753991413556,0.1336,3745.2,3745.1,0.02]
[1753991414200,3.0,3745.9,3745.1,0.02]
[1753991414201,0.4508,3746.2,3745.1,0.4651]
[1753991414412,0.1336,3746.0,3745.2,0.02670084]
[1753991414627,0.1336,3746.0,3745.5,0.1336]
[1753991414779,0.1336,3746.0,3745.6,2.6697845]
[1753991414984,0.5844,3746.0,3745.6,2.66974987]
[1753991415180,0.1336,3746.0,3745.8,2.66960668]
[1753991415529,0.1336,3746.0,3745.8,2.66964093]
[1753991415735,7.05594942,3746.8,3746.2,2.66933944]
[1753991415736,4.387,3746.8,3746.2,2.66933944]
[1753991415917,0.1336,3746.5,3745.9,0.1336]
[1753991416086,2.6691385,3746.6,3745.8,2.66959922]
[1753991416281,6.416,3747.2,3746.0,0.1336]
[1753991416282,0.1336,3746.5,3746.0,0.1336]
[1753991416627,0.1336,3746.7,3746.0,0.1336]
[1753991416826,0.1336,3746.7,3746.3,2.66925665]
[1753991417327,0.1336,3746.7,3745.4,7.50789995]
[1753991417328,0.4727,3746.6,3745.8,2.6695857]
[1753991417526,0.1336,3746.2,3746.1,2.66944288]
[1753991418178,0.1336,3746.2,3746.0,2.66949537]
[1753991418383,0.1336,3746.2,3746.1,2.66944288]
[1753991418592,0.4727,3746.1,3745.0,2.67017363]
[1753991418794,0.4727,3746.1,3745.3,0.1336]
[1753991418795,0.1336,3745.8,3745.3,0.1336]
[1753991419001,0.4727,3746.6,3746.1,2.66942355]
[1753991419281,0.1336,3746.1,3745.5,0.1336]
[1753991419595,0.945,3746.5,3745.9,2.66954273]
[1753991419795,0.4727,3746.4,3745.9,2.66954273]
[1753991420105,0.1336,3746.0,3745.7,2.66966988]
[1753991420431,0.4727,3746.5,3746.2,2.66937162]
[1753991420598,3.4727,3746.9,3746.4,2.66922912]
[1753991420800,0.1336,3746.5,3746.4,2.66922892]
[1753991420997,0.1336,3746.5,3745.7,0.1336]
[1753991421211,0.1336,3746.5,3746.4,2.66922912]
[1753991421622,0.1336,3746.5,3745.4,4.372]
[1753991421623,0.24442253,3746.7,3745.5,3.0]
[1753991421829,0.75383478,3746.7,3746.6,2.66908663]
[1753991422141,0.75383478,3746.7,3745.9,2.66958541]
[1753991422142,1.22653478,3746.7,3745.9,2.66958541]
[1753991422340,0.98211225,3746.7,3746.6,2.66908663]
[1753991422549,0.98211225,3746.7,3745.5,3.0]
[1753991422550,1.22651959,3746.7,3745.5,3.0]
[1753991422700,0.98211225,3746.7,3746.6,2.66908663]
[1753991422900,1.22650696,3746.7,3746.6,2.66908663]
[1753991423104,0.75380696,3746.7,3746.6,2.66908663]
[1753991423411,0.001,3747.3,3746.9,2.66887293]
[1753991423755,4.86581646,3747.0,3746.8,2.66889472]
[1753991424050,1.43381646,3746.9,3745.7,7.50789995]
[1753991424348,0.96151646,3746.8,3745.4,4.364]
[1753991424636,2.66908663,3746.6,3745.7,2.66972232]
[1753991424820,1.32467677,3746.5,3745.3,14.54088583]
[1753991425026,0.83586031,3746.5,3746.0,2.66948197]
[1753991425378,0.001,3746.7,3746.1,2.66943535]
[1753991425536,0.24541303,3746.7,3746.0,2.66951414]
[1753991425699,2.67001788,3746.7,3746.0,2.669456]
[1753991425902,0.4727,3746.6,3745.4,0.443]
[1753991426205,0.4727,3746.6,3745.9,2.66956126]
[1753991426413,0.4727,3746.6,3745.4,4.806]
[1753991426823,0.4727,3746.6,3745.1,0.02]
[1753991426824,0.61427121,3746.5,3745.1,0.02]
[1753991427126,3.0,3746.2,3745.1,0.02]
[1753991427323,0.4727,3746.6,3745.1,0.02]
[1753991427324,2.66961779,3745.9,3745.1,0.02]
[1753991427638,2.66973762,3745.7,3745.1,0.02]
[1753991427950,0.945,3745.8,3745.1,0.02]
[1753991428159,0.945,3745.6,3745.1,0.02]
[1753991428312,0.3945,3745.7,3745.1,0.02]
[1753991428513,0.3945,3745.7,3745.3,2.67001288]
[1753991428818,3.4727,3746.0,3745.1,0.02]
[1753991429135,0.4727,3746.0,3745.3,2.6699589]
[1753991429341,3.4727,3746.0,3745.4,2.66993469]
[1753991429839,3.0,3746.0,3745.1,0.02]
[1753991430017,3.7362,3746.0,3745.5,2.6698149]
[1753991430212,0.945,3746.6,3746.0,2.66951414]
[1753991430424,3.0,3746.5,3745.7,2.66972795]
[1753991430916,0.001,3746.7,3745.7,0.02669727]
[1753991431142,0.001,3746.7,3745.6,0.443]
[1753991431143,0.001,3746.7,3745.9,2.66958541]
[1753991431337,0.001,3746.7,3746.5,2.66908767]
[1753991431537,0.001,3746.7,3745.9,0.1336]
[1753991431538,0.1336,3746.5,3745.9,0.1336]
[1753991431738,0.4727,3746.4,3746.2,2.66935156]
[1753991431941,0.4727,3746.4,3745.1,0.02]
[1753991431942,0.4727,3746.3,3745.5,0.1336]
[1753991432129,0.1336,3745.7,3745.6,2.66979923]
[1753991432431,0.4727,3745.7,3745.4,2.66993147]
[1753991432632,3.0,3745.5,3745.1,0.02]
[1753991432885,2.80368437,3745.2,3745.1,0.02]
[1753991433419,3.74868437,3745.2,3745.1,0.02]
[1753991435552,8.10268437,3745.2,3745.1,0.02]
[1753991435941,11.10268437,3745.2,3745.1,0.02]
[1753991436454,4.4876,3745.2,3745.1,2.69015567]
[1753991436615,4.4876,3745.2,3745.1,0.02]
[1753991436814,4.9603,3745.2,3745.1,0.02]
[1753991437031,4.4876,3745.2,3745.1,0.02]
[1753991437228,0.1336,3745.2,3745.1,2.69015567]
[1753991437536,0.1336,3745.2,3745.1,0.02]
[1753991437745,0.6063,3745.2,3745.1,0.02]
[1753991437929,1.36922657,3745.2,3745.1,0.02]
[1753991438520,4.51161094,3745.2,3745.1,0.02]
[1753991439924,7.51161094,3745.2,3745.1,0.02]
[1753991440137,4.84152657,3745.2,3745.1,0.02]
[1753991440340,4.36922657,3745.2,3745.1,0.02]
[1753991441023,7.51161094,3745.2,3745.1,0.02]
[1753991441219,2.67044676,3744.7,3744.3,0.002]
[1753991441426,0.1336,3744.4,3744.3,0.002]
[1753991441632,4.4866,3744.4,3744.3,0.002]
[1753991442035,4.9593,3744.4,3744.3,0.002]
[1753991442458,5.4316,3744.4,3744.3,0.002]
[1753991442659,11.10225484,3744.4,3744.3,0.002]
[1753991442861,9.36328681,3744.4,3744.3,0.002]
[1753991443233,8.89058681,3744.4,3744.3,0.002]
[1753991443459,4.4866,3744.4,3744.3,2.67272617]
[1753991443931,4.4866,3744.4,3744.3,0.002]
[1753991444349,4.9593,3744.4,3744.3,0.002]
[1753991444762,8.4316,3744.4,3744.3,0.0289]
[1753991445083,9.27476,3744.4,3744.3,0.0289]
[1753991445258,8.80246,3744.4,3744.3,0.0289]
[1753991445981,9.27476,3744.4,3744.3,0.0289]
[1753991446448,8.80246,3744.4,3744.3,0.0289]
[1753991447056,11.47311484,3744.4,3744.3,0.0289]
[1753991447255,9.23086,3744.4,3744.3,0.0289]
[1753991447657,11.90151484,3744.4,3744.3,0.0289]
[1753991448591,12.45151484,3744.4,3744.3,0.0289]
[1753991449962,12.40151484,3744.4,3744.3,0.0289]
[1753991450351,12.40151484,3744.4,3744.3,1e-08]
[1753991451296,2.671511,3743.2,3743.1,0.02]
[1753991451594,10.006511,3743.2,3743.1,0.02]
[1753991451813,11.045911,3743.2,3743.1,0.02]
[1753991452678,11.595911,3743.2,3743.1,0.02]
[1753991454315,7.943,3743.2,3743.1,0.02]
[1753991454498,11.837211,3743.2,3743.1,0.02]
[1753991455110,12.253611,3743.2,3743.1,0.02]
[1753991458381,11.825211,3743.2,3743.1,1e-08]
[1753991458585,12.253611,3743.2,3743.1,1e-08]
[1753991459890,15.069611,3743.2,3743.1,1e-08]
[1753991460430,15.26972979,3743.2,3743.1,1e-08]
[1753991462042,15.51342183,3743.2,3743.1,1e-08]
[1753991462394,15.51337823,3743.2,3743.1,1e-08]
[1753991462704,10.93772979,3743.2,3743.1,1e-08]
[1753991463014,15.25972979,3743.2,3743.1,1e-08]
[1753991463689,15.50335016,3743.2,3743.1,1e-08]
[1753991465034,15.63695016,3743.2,3743.1,1e-08]
[1753991465196,10.88655016,3743.2,3743.1,1e-08]
[1753991465397,14.45143137,3743.2,3743.1,1e-08]
[1753991465716,15.00143137,3743.2,3743.1,1e-08]
[1753991466094,15.42983137,3743.2,3743.1,1e-08]
[1753991466899,7.13643137,3743.2,3743.1,1e-08]
[1753991467105,11.45443137,3743.2,3743.1,1e-08]
[1753991467302,14.45443137,3743.2,3743.1,1e-08]
[1753991467611,11.88283137,3743.2,3743.1,1e-08]
[1753991467809,2.67291227,3741.3,3741.1,0.02]
[1753991468012,6.98893916,3741.2,3741.1,0.02]
[1753991468336,4.4506,3741.2,3741.1,0.02]
[1753991468515,4.4506,3741.2,3741.1,0.04]
[1753991468914,7.12353916,3741.2,3741.1,0.4629]
[1753991469115,4.4506,3741.2,3741.1,0.4629]
[1753991469311,4.4506,3741.2,3741.1,0.4829]
[1753991469717,4.4506,3741.2,3741.1,0.4629]
[1753991470246,4.4506,3741.2,3741.1,0.4829]
[1753991470535,4.4486,3741.2,3741.1,0.4829]
[1753991471300,4.4486,3741.2,3741.1,0.4629]
[1753991471814,7.11753916,3741.2,3741.1,0.02]
[1753991472214,4.4446,3741.2,3741.1,0.02]
[1753991472421,7.11753916,3741.2,3741.1,0.02]
[1753991472703,4.4446,3741.2,3741.1,0.02]
[1753991473417,4.4446,3741.2,3741.1,0.4629]
[1753991474127,4.4446,3741.2,3741.1,0.4829]
[1753991474504,4.4446,3741.2,3741.1,3.15591061]
[1753991475142,4.4446,3741.2,3741.1,0.4629]
[1753991475305,4.4446,3741.2,3741.1,3.15591061]
[1753991475859,4.311,3741.2,3741.1,3.15591061]
[1753991476004,4.311,3741.2,3741.1,3.75217121]
[1753991476499,4.311,3741.2,3741.1,0.5962606]
[1753991476713,4.311,3741.2,3741.1,2.67301061]
[1753991478549,4.311,3741.2,3740.6,0.1408]
[1753991478550,4.55497342,3741.2,3740.6,0.1408]
[1753991478705,4.4446,3741.2,3741.1,2.67301061]
[1753991478906,4.68856387,3741.2,3741.1,2.67301061]
[1753991479131,4.55496387,3741.2,3741.1,2.81381061]
[1753991479323,4.55496387,3741.2,3741.1,2.67301061]
[1753991479529,4.55496387,3741.2,3740.9,2.67312933]
[1753991479750,0.1336,3740.8,3740.3,0.1336]
[1753991479910,4.303,3740.7,3740.6,2.6733679]
[1753991480312,4.4366,3740.7,3740.6,2.6733679]
[1753991480710,4.54724684,3740.7,3740.1,0.02]
[1753991481021,4.38462468,3740.6,3740.1,0.02]
[1753991481424,3.45472468,3740.6,3740.1,2.69367815]
[1753991481625,3.45472468,3740.6,3740.1,0.02]
[1753991481811,0.24435775,3740.5,3740.1,0.02]
[1753991482243,4.301,3740.4,3740.1,0.02]
[1753991482544,0.45453578,3740.3,3740.1,0.02]
[1753991482745,0.457,3740.8,3740.1,0.02]
[1753991482951,0.24434832,3740.7,3740.6,2.6733679]
[1753991483158,4.301,3740.7,3740.6,2.6733679]
[1753991483446,4.54534832,3740.7,3740.6,2.6733679]
[1753991483646,4.54734832,3740.7,3740.6,2.8141679]
[1753991483809,0.457,3741.9,3740.7,2.6732385]
[1753991484152,4.79167858,3741.8,3740.8,0.1408]
[1753991484364,4.79167858,3741.7,3741.6,2.67265341]
[1753991484509,4.79167858,3741.7,3740.8,0.1408]
[1753991484828,4.79167858,3741.7,3741.3,2.67283091]
[1753991484829,0.48867858,3741.6,3741.3,2.67283091]
[1753991485018,1.18050715,3741.6,3740.4,2.67351085]
[1753991485215,0.9299,3741.5,3740.0,0.21]
[1753991485426,0.48877426,3741.4,3740.2,2.67363689]
[1753991485644,0.43417134,3741.3,3741.1,2.67298598]
[1753991485870,4.54746724,3741.2,3740.8,2.67320504]
[1753991486085,1.17436724,3741.1,3740.1,0.02]
[1753991486266,3.48431299,3741.0,3740.3,2.6735618]
[1753991486469,0.24446724,3740.9,3740.3,2.67358233]
[1753991486639,4.306,3740.9,3740.8,2.67322497]
[1753991486839,4.5504884,3740.9,3740.8,2.67322497]
[1753991487480,0.2444884,3740.9,3740.8,2.81402497]
[1753991487836,0.2444884,3741.0,3740.9,2.67315351]
[1753991488147,4.307,3741.4,3741.0,0.1408]
[1753991488348,4.307,3741.4,3741.3,2.67286771]
[1753991488548,4.306,3741.4,3741.3,2.81366771]
[1753991489155,6.422,3742.5,3742.0,2.6723601]
[1753991489336,0.24478369,3742.4,3742.2,2.67216054]
[1753991489543,0.24478369,3742.4,3742.3,2.67215348]
[1753991489940,4.55278369,3742.4,3742.3,2.67215348]
[1753991490140,5.00978369,3742.4,3741.3,0.68946211]
[1753991490373,0.24478369,3742.3,3742.2,2.67222489]
[1753991490603,4.55186615,3742.3,3741.4,2.67279627]
[1753991490753,0.1536,3742.9,3742.8,2.67179651]
[1753991491065,4.70853629,3742.9,3742.8,2.67179651]
[1753991491566,6.10928992,3742.9,3742.4,2.67204791]
[1753991491746,0.1336,3742.6,3742.2,2.67215719]
[1753991491951,0.457,3742.5,3741.9,0.1336]
[1753991492173,4.55593629,3742.4,3742.2,2.67215466]
[1753991492382,4.55593629,3742.4,3742.0,2.67236771]
[1753991492383,0.70193629,3742.3,3742.0,2.67236771]
[1753991492591,0.1336,3742.1,3741.5,0.1336]
[1753991492767,0.1336,3742.1,3742.0,2.67236771]
[1753991492988,0.1336,3742.1,3741.9,2.67242795]
[1753991493193,0.1336,3742.1,3742.0,2.67236771]
[1753991493511,4.4426,3742.1,3742.0,2.67236771]
[1753991493685,4.55393629,3742.1,3742.0,2.67236771]
[1753991494194,4.55393629,3742.1,3741.2,2.67293916]
[1753991494510,0.37853629,3742.0,3741.5,2.67269804]
[1753991494811,0.83553629,3742.0,3741.4,0.1336]
[1753991494969,0.5906,3742.0,3741.8,2.67250002]
[1753991495301,0.24499789,3741.9,3741.8,2.67250002]
[1753991495809,1.68935768,3741.9,3740.8,0.1336]
[1753991495992,0.1336,3741.6,3741.0,2.67303327]
[1753991496191,0.1336,3741.2,3741.0,2.67303327]
[1753991496371,0.1336,3741.2,3740.8,2.67318916]
[1753991496701,1.0635,3741.2,3741.0,2.67308109]
[1753991496929,1.0635,3741.2,3740.5,2.8070291]
[1753991497074,1.0635,3741.2,3740.0,0.21]
[1753991497273,1.0635,3741.2,3740.1,0.1536]
[1753991497274,3.98162608,3741.2,3740.1,0.1536]
[1753991497591,8.0774701,3741.2,3740.1,0.02]
[1753991498187,8.0774701,3741.2,3740.3,2.67357923]
[1753991498387,8.0774701,3741.2,3740.5,2.67341354]
[1753991498604,12.3814701,3741.2,3740.4,2.67348442]
[1753991498769,12.3814701,3741.2,3740.1,2.69371922]
[1753991498982,9.3794701,3741.2,3740.1,0.02]
[1753991499590,12.3794701,3741.2,3740.1,0.02]
[1753991499799,18.8004701,3741.2,3740.1,0.02]
[1753991500170,19.04575255,3741.2,3740.1,0.02]
[1753991500596,19.04575255,3741.2,3740.2,2.67364868]
[1753991500803,19.04575255,3741.2,3740.4,2.67348689]
[1753991500975,19.04575255,3741.2,3740.1,0.02]
[1753991501175,16.12262647,3741.2,3740.1,0.02]
[1753991501501,18.55028318,3741.2,3740.1,2.69371341]
[1753991501675,18.55028318,3741.2,3740.3,2.67357343]
[1753991501875,18.55028318,3741.2,3740.1,0.02]
[1753991502075,18.55028318,3741.2,3740.2,2.67364846]
[1753991502517,18.55028318,3741.2,3740.3,2.6735767]
[1753991502821,18.55028318,3741.2,3740.2,2.67362887]
[1753991502973,18.55028318,3741.2,3740.1,2.69371864]
[1753991503288,18.55028318,3741.2,3740.2,2.67365008]
[1753991503832,18.55028318,3741.2,3740.3,2.67352488]
[1753991504115,10.8486,3741.2,3740.2,0.2744]
[1753991504423,10.8486,3741.2,3740.8,2.67317874]
[1753991504774,10.8486,3741.2,3740.2,2.94800266]
[1753991504999,10.8486,3741.2,3740.7,2.67329164]
[1753991505319,0.1336,3741.2,3741.1,2.67501061]
[1753991505510,4.4266,3741.2,3741.1,2.84254071]
[1753991505715,4.4266,3741.2,3741.1,2.81581061]
[1753991505923,4.293,3741.2,3741.1,3.49830112]
[1753991506092,0.1336,3741.8,3741.7,2.67258198]
[1753991506284,4.4266,3741.8,3741.7,2.67258198]
[1753991506485,0.62425806,3741.8,3741.7,2.67258198]
[1753991506721,4.91625806,3741.8,3741.7,2.67258198]
[1753991507020,4.78165806,3741.8,3741.7,2.67258198]
[1753991507222,0.49065806,3741.8,3741.7,3.37535213]
[1753991507423,4.53832913,3741.8,3741.7,3.37535213]
[1753991507600,4.78265806,3741.8,3741.7,3.37535213]
[1753991508221,4.78165806,3741.8,3741.7,3.37535213]
[1753991508422,4.78165806,3741.8,3741.7,2.67258198]
[1753991510129,4.91525806,3741.8,3741.7,2.67258198]
[1753991510354,0.49065806,3741.8,3741.7,2.67258198]
[1753991510537,4.77865806,3741.8,3741.7,2.67258198]
[1753991510964,5.25655806,3741.8,3741.4,0.1336]
[1753991511131,0.49058194,3741.7,3741.1,0.1356]
[1753991511329,4.53329097,3741.6,3741.5,2.67272484]
[1753991511533,5.25650197,3741.6,3741.5,2.67272484]
[1753991511848,4.77860197,3741.6,3741.5,2.67272484]
[1753991512046,0.49060197,3741.6,3741.5,2.67272484]
[1753991512263,0.1336,3741.7,3741.6,2.67265341]
[1753991512493,4.4216,3741.7,3741.6,2.67265341]
[1753991512647,0.1336,3741.7,3741.6,2.67265341]
[1753991512847,4.4206,3741.7,3741.6,2.67265341]
[1753991513048,0.1336,3741.7,3741.6,2.67265341]
[1753991513249,0.6115,3741.7,3741.6,2.67265341]
[1753991513448,5.3598,3741.7,3741.6,2.67265341]
[1753991513981,1.0748,3741.7,3741.5,2.67270731]
[1753991514151,5.2262,3741.7,3741.6,2.67265341]
[1753991514575,5.3598,3741.7,3741.5,2.67271112]
[1753991514766,5.2262,3741.7,3741.6,2.67265341]
[1753991515093,5.14166494,3741.7,3741.6,2.67265341]
[1753991515952,5.14166494,3741.7,3741.1,0.002]
[1753991516152,0.1336,3741.4,3741.2,2.67287544]
[1753991516493,4.279,3741.3,3741.2,2.67287544]
[1753991516800,4.52416494,3741.3,3741.2,2.67287544]
[1753991517544,4.52416494,3741.3,3741.2,2.67293916]
[1753991518096,4.275,3741.3,3741.2,2.80653916]
[1753991519582,4.52022137,3741.3,3741.2,2.80653916]
[1753991519888,4.275,3741.3,3741.2,2.80653916]
[1753991520293,0.1336,3741.7,3741.2,2.80653916]
[1753991520294,0.1336,3741.7,3741.6,2.67265341]
[1753991520588,4.271,3741.7,3741.6,2.67265341]
[1753991520807,0.1336,3742.1,3742.0,2.67236771]
[1753991520989,6.422,3742.3,3742.2,2.67222489]
[1753991521163,10.93826762,3742.3,3742.2,2.67222489]
[1753991521862,10.93826762,3742.3,3742.0,2.80596771]
[1753991522068,0.37884533,3742.2,3742.1,2.6722963]
[1753991522380,0.1336,3742.2,3742.1,2.6722963]
[1753991522701,4.51418432,3742.2,3741.7,0.1336]
[1753991522904,4.7469,3742.2,3742.1,2.6722963]
[1753991523103,0.72307524,3742.2,3742.1,2.4722963]
[1753991523311,0.001,3742.4,3742.3,2.67215348]
[1753991523605,0.001,3742.8,3742.7,2.6718679]
[1753991523778,4.271,3742.8,3742.7,2.6718679]
[1753991524183,4.7489,3742.8,3742.6,0.1336]
[1753991524507,1.31970282,3742.7,3742.6,2.67193929]
[1753991524804,1.31970282,3742.7,3742.3,2.67209761]
[1753991525010,0.1336,3742.5,3742.0,2.80592193]
[1753991525208,4.27,3742.4,3742.2,2.67217387]
[1753991525371,1.40605028,3742.3,3742.1,2.67227972]
[1753991525706,0.9412,3742.3,3742.1,2.67227059]
[1753991525908,1.0748,3742.2,3741.8,2.67244668]
[1753991526112,4.7469,3742.1,3742.0,2.67232188]
[1753991526295,4.7469,3742.1,3741.6,2.67265341]
[1753991526495,0.9412,3742.0,3741.5,0.1336]
[1753991526684,0.4779,3742.0,3741.9,2.67243913]
[1753991526917,1.42925,3742.0,3741.1,0.002]
[1753991527097,2.67256947,3741.8,3741.1,0.002]
[1753991527288,7.44002294,3741.7,3741.1,0.002]
[1753991527599,0.48943666,3741.6,3741.1,0.002]
[1753991527802,0.24470553,3741.5,3741.1,0.002]
[1753991528107,4.99843384,3741.4,3741.1,0.002]
[1753991528309,0.24473113,3741.3,3741.1,0.002]
[1753991528611,5.46593113,3741.3,3741.1,0.002]
[1753991528910,0.70803113,3741.2,3741.1,0.002]
[1753991529292,1.18593113,3741.2,3741.1,0.002]
[1753991530309,4.52073113,3741.2,3741.1,0.002]
[1753991530473,4.276,3741.2,3741.1,2.67501061]
[1753991530878,4.7539,3741.2,3741.1,0.002]
[1753991531094,0.4633,3741.7,3741.1,2.67501061]
[1753991531289,0.4779,3741.5,3741.1,2.67499677]
[1753991531617,0.72275151,3741.4,3741.1,0.002]
[1753991531803,0.24485151,3741.3,3741.2,2.6729207]
[1753991531981,0.4779,3741.4,3741.3,2.67286771]
[1753991532183,4.99678285,3741.4,3741.3,2.67286771]
[1753991532382,4.99678285,3741.4,3741.2,2.6729261]
[1753991532611,4.7519,3741.4,3741.3,2.67286771]
[1753991532806,4.99677918,3741.4,3741.2,2.67293439]
[1753991533120,4.99677918,3741.4,3741.1,0.002]
[1753991533121,2.67293916,3741.2,3741.1,0.002]
[1753991533282,2.67326965,3740.8,3740.1,0.02]
[1753991533484,2.67323963,3740.8,3740.1,2.69371046]
[1753991533815,0.4779,3741.6,3741.4,2.67279272]
[1753991534014,4.51886698,3741.5,3740.4,10.04559527]
[1753991534189,0.24486698,3741.4,3741.1,2.67296345]
[1753991534407,0.72276698,3741.4,3741.2,2.67288142]
[1753991534590,0.4779,3741.4,3740.7,0.1]
[1753991535520,0.001,3741.7,3741.6,2.67265341]
[1753991536022,0.001,3741.7,3741.6,2.81545341]
[1753991536188,0.001,3741.7,3741.6,4.36883216]
[1753991536909,0.001,3741.7,3741.6,4.35963216]
[1753991537426,0.001,3741.7,3741.6,2.80625341]
[1753991537624,0.001,3741.7,3741.6,2.67265341]
[1753991538698,6.5546,3742.7,3742.6,2.67193929]
[1753991538898,10.695,3742.7,3742.6,2.67193929]
[1753991539351,3.0,3742.6,3739.0,2.816]
[1753991539657,0.1336,3740.8,3740.7,2.77329644]
[1753991539938,0.4921,3741.1,3740.8,2.6731624]
[1753991540148,0.6257,3741.1,3740.8,2.6731624]
[1753991540311,0.24483343,3741.0,3740.7,0.1]
[1753991540636,0.37843343,3740.9,3740.7,0.1]
[1753991541142,0.73693343,3740.8,3740.7,0.1]
[1753991541342,3.8516584,3740.8,3740.7,0.1]
[1753991541542,4.51749612,3740.8,3740.7,0.1]
[1753991541746,8.82149612,3740.8,3740.7,0.1]
[1753991542419,9.06632307,3740.8,3740.7,0.1]
[1753991543733,12.06632307,3740.8,3740.7,0.1]
[1753991544143,7.76232307,3740.8,3740.7,0.1]